bitfinex-derivatives/quotes_ETHF0:USTF0_20260223
["timestamp","ask_amount","ask_price","bid_price","bid_amount"]
[1771823628609,0.80282633,1865.1,1864.7,0.71126439]
[1771823628804,0.80282633,1865.1,1864.7,0.71720728]
[1771823629305,0.71832615,1865.3,1864.7,0.71720728]
[1771823630310,0.7252509,1865.3,1864.7,0.71720728]
[1771823634009,0.7252509,1865.3,1864.7,0.00594289]
[1771823634210,0.7252509,1865.3,1864.7,0.71720728]
[1771823638013,0.71832615,1865.1,1864.7,0.00594289]
[1771823638711,0.71832615,1865.1,1864.7,0.00100376]
[1771823638911,0.71832615,1865.1,1864.5,0.68772442]
[1771823639811,0.71832615,1865.1,1864.5,0.691748]
[1771823641406,0.71832615,1865.1,1864.5,0.00402358]
[1771823647919,0.71832615,1864.9,1864.1,0.64334582]
[1771823648915,0.71832615,1864.9,1864.1,0.64729546]
[1771823649818,0.71832615,1864.8,1864.1,0.64729546]
[1771823658417,0.71832615,1864.8,1864.2,0.59922195]
[1771823666236,0.67415319,1865.1,1864.2,0.59922195]
[1771823666425,0.67415319,1865.2,1864.3,0.53894798]
[1771823673741,0.67415319,1865.2,1864.4,0.26826]
[1771823674040,0.67415319,1865.2,1864.6,0.50822857]
[1771823675032,0.67415319,1865.2,1864.4,0.26826]
[1771823675338,0.67415319,1865.2,1864.5,0.50221366]
[1771823679942,0.67415319,1865.2,1864.2,0.47692274]
[1771823683148,0.67415319,1865.1,1864.2,0.47692274]
[1771823695662,0.67415319,1865.1,1863.7,6.60144]
[1771823695663,0.2682,1864.8,1863.5,0.41130538]
[1771823695861,0.59922616,1864.3,1863.5,0.41130538]
[1771823696756,0.59922616,1864.3,1863.5,0.417836]
[1771823701260,0.59922616,1864.3,1863.6,0.38007941]
[1771823702456,0.59922616,1864.3,1863.8,0.37625384]
[1771823704765,0.59922616,1864.4,1863.9,0.3652518]
[1771823704961,0.59922616,1864.8,1864.1,0.36255792]
[1771823709862,1.84171199,1864.5,1863.7,0.35487453]
[1771823710067,0.59922616,1864.4,1863.7,0.35487453]
[1771823711362,0.59922616,1864.2,1863.5,0.35326759]
[1771823714369,0.59922616,1864.2,1863.7,0.3496393]
[1771823714865,0.59922616,1864.2,1863.9,0.3496393]
[1771823715067,0.59922616,1864.6,1863.9,0.3496393]
[1771823715768,0.59922616,1864.4,1863.7,0.35058241]
[1771823721669,1.84171199,1864.3,1863.7,0.35058241]
[1771823721875,0.56639455,1864.2,1863.6,2.17864017]
[1771823722173,0.56639455,1864.2,1863.7,0.33692818]
[1771823726579,0.56639455,1864.2,1863.9,0.33277222]
[1771823727279,0.56639455,1864.5,1864.1,0.3329079]
[1771823734287,0.56639455,1864.5,1864.0,2.176753]
[1771823734485,0.56639455,1864.5,1864.1,0.33504101]
[1771823740693,0.56639455,1864.6,1864.1,0.33504101]
[1771823740895,0.56639455,1864.6,1864.3,0.33380285]
[1771823741095,0.56639455,1864.6,1864.0,0.33194031]
[1771823741396,0.56639455,1864.6,1864.1,0.33194031]
[1771823743989,0.56639455,1864.9,1864.1,0.33194031]
[1771823744194,0.56639455,1864.9,1863.9,0.26833]
[1771823744195,0.56639455,1864.9,1864.4,0.33643229]
[1771823746801,0.56639455,1865.2,1864.4,0.33028318]
[1771823748899,0.56639455,1865.2,1864.6,0.33295924]
[1771823749101,0.56639455,1865.2,1864.5,0.33464699]
[1771823752805,0.5818885,1864.9,1864.3,0.26827]
[1771823753205,0.5818885,1864.9,1864.3,0.60199996]
[1771823753704,0.5818885,1864.9,1864.4,0.33372996]
[1771823754909,0.5818885,1864.9,1863.9,2.11004199]
[1771823755101,0.5818885,1864.7,1864.2,0.34117642]
[1771823755508,0.5818885,1864.7,1864.0,0.34117642]
[1771823759016,0.5818885,1864.5,1864.0,0.34117642]
[1771823760512,0.0365185,1864.5,1864.1,2.39659019]
[1771823760718,0.5818885,1864.9,1864.1,2.39659019]
[1771823761017,0.5818885,1864.9,1864.1,0.5548782]
[1771823761708,0.5818885,1864.7,1863.9,0.8232082]
[1771823761909,0.5818885,1864.7,1864.0,0.5548782]
[1771823762521,0.5818885,1864.5,1864.0,0.5548782]
[1771823762821,0.5818885,1864.1,1863.5,0.56140882]
[1771823763021,0.5818885,1863.9,1863.5,0.00653062]
[1771823763221,0.5875641,1863.9,1863.4,0.8232682]
[1771823763424,0.5875641,1863.9,1863.5,0.5548782]
[1771823763818,0.0056756,1863.9,1863.5,0.5548782]
[1771823764022,0.5818885,1864.1,1863.5,0.5548782]
[1771823765024,0.58784274,1864.1,1863.5,0.55867945]
[1771823770723,1.84236812,1864.8,1863.5,0.55867945]
[1771823770724,0.5818885,1864.8,1863.7,0.5548782]
[1771823771627,0.58781026,1864.8,1863.7,0.5548782]
[1771823776831,0.58781026,1864.8,1863.9,0.5548782]
[1771823786137,0.58781026,1864.8,1864.1,0.56397365]
[1771823787337,0.59259512,1864.9,1864.3,0.56397365]
[1771823788438,0.59722293,1864.9,1864.3,0.56397365]
[1771823788738,0.59259512,1865.1,1864.6,0.56397365]
[1771823788938,0.59259512,1865.2,1864.6,0.56397365]
[1771823789438,6.467,1865.7,1864.6,0.56397365]
[1771823789439,0.59259512,1865.3,1864.6,0.56397365]
[1771823789943,0.00657965,1865.3,1864.7,0.56397365]
[1771823790135,0.59917477,1865.3,1864.7,0.56397365]
[1771823800441,0.59917477,1865.3,1864.6,0.56397365]
[1771823800741,0.59917477,1865.3,1864.5,0.56397365]
[1771823803649,13.33015455,1866.2,1864.4,0.26826]
[1771823803650,0.59259512,1865.9,1864.9,0.56397365]
[1771823804653,0.59936212,1865.9,1864.9,0.5684763]
[1771823806650,0.59259512,1865.7,1864.9,0.5684763]
[1771823810963,2.43496324,1865.7,1864.9,0.00450265]
[1771823811262,0.57871144,1865.6,1864.9,0.59460827]
[1771823811962,0.57871144,1865.6,1864.9,0.00450265]
[1771823814962,0.57871144,1865.6,1864.9,0.59460827]
[1771823815665,0.57871144,1865.6,1864.9,0.00450265]
[1771823817359,0.57871144,1865.6,1864.6,0.59010562]
[1771823817661,0.57871144,1865.4,1864.2,0.59010562]
[1771823817865,0.57871144,1865.2,1864.2,0.59010562]
[1771823818266,0.57871144,1865.2,1864.2,0.59641067]
[1771823821269,0.57871144,1865.2,1864.4,0.59010562]
[1771823821470,0.57871144,1865.6,1864.4,0.59010562]
[1771823821664,0.57871144,1865.4,1864.4,0.59010562]
[1771823827075,0.57871144,1865.4,1864.5,7.024]
[1771823827276,0.57871144,1865.4,1864.6,0.59010562]
[1771823828973,0.57871144,1865.4,1864.7,7.61410562]
[1771823829170,0.57871144,1865.4,1864.8,0.59010562]
[1771823832973,0.57871144,1865.5,1864.8,0.59010562]
[1771823833377,0.57871144,1865.5,1864.9,0.59010562]
[1771823834481,0.57871144,1865.5,1865.0,0.59010562]
[1771823834774,0.57871144,1865.5,1865.2,0.59010562]
[1771823834979,0.57871144,1865.6,1865.2,0.59010562]
[1771823836076,0.57871144,1865.8,1865.5,0.59010562]
[1771823836276,8.26029556,1866.4,1865.7,0.59010562]
[1771823837175,8.26029556,1866.4,1865.7,0.59467]
[1771823837380,8.26561661,1866.4,1865.7,0.59467]
[1771823838979,0.01082426,1866.3,1865.7,0.59467]
[1771823843179,8.26561661,1866.4,1865.7,0.59467]
[1771823843384,0.00226522,1866.3,1865.7,0.59467]
[1771823845185,8.26561661,1866.4,1865.7,0.59467]
[1771823845385,8.26662907,1866.4,1865.7,0.59467]
[1771823845683,0.00101246,1866.3,1865.7,0.59467]
[1771823846584,0.00532105,1866.4,1865.7,0.59467]
[1771823847582,0.00532105,1866.4,1865.7,0.86274]
[1771823847785,0.00300814,1866.8,1865.8,0.60977466]
[1771823847989,0.00300814,1866.8,1866.0,0.60977466]
[1771823848684,0.00831421,1866.8,1866.0,0.60977466]
[1771823848986,0.00300814,1866.7,1866.0,0.60977466]
[1771823850282,0.00832517,1866.8,1866.0,0.60977466]
[1771823850489,0.0030191,1866.7,1866.0,0.60977466]
[1771823850687,0.00530607,1866.8,1866.0,0.60977466]
[1771823850887,0.00832517,1866.8,1866.0,0.60977466]
[1771823852392,0.00530607,1866.8,1866.0,0.60977466]
[1771823853391,0.00530607,1866.8,1866.2,0.60526694]
[1771823853590,0.00530607,1866.8,1866.4,0.60526694]
[1771823854692,0.01202358,1867.3,1866.4,0.60526694]
[1771823855792,0.01279924,1867.2,1866.4,0.60526694]
[1771823856696,0.01279924,1867.2,1866.6,0.60487911]
[1771823857998,0.01279924,1867.2,1866.6,7.62487911]
[1771823858393,0.00476259,1867.3,1866.7,0.59453234]
[1771823859098,0.04624607,1867.3,1866.7,0.59453234]
[1771823859400,0.00476259,1867.3,1866.7,0.59453234]
[1771823860801,0.04148348,1867.9,1866.7,0.59453234]
[1771823861200,0.04165854,1867.6,1866.9,0.59441672]
[1771823861703,0.04705292,1867.6,1866.9,0.59441672]
[1771823863400,0.04705292,1867.6,1867.1,0.59441672]
[1771823863595,0.04798609,1867.6,1867.2,0.59441672]
[1771823864191,0.04798609,1867.6,1867.1,0.60079204]
[1771823864901,1.87812589,1867.5,1867.1,0.60079204]
[1771823865506,0.04589842,1867.4,1867.1,0.60079204]
[1771823865706,1.8814326,1867.5,1867.1,0.60079204]
[1771823866702,0.04589842,1867.4,1867.1,0.60079204]
[1771823866903,1.83553418,1867.3,1867.0,0.2309404]
[1771823867103,2.24490892,1867.5,1867.0,0.2309404]
[1771823867403,0.4099181,1867.1,1866.6,0.57307044]
[1771823867603,2.24545228,1867.2,1866.6,0.57307044]
[1771823867804,2.24545228,1867.5,1866.6,0.57688848]
[1771823868003,2.24546067,1867.3,1866.6,0.57688848]
[1771823869005,0.40992649,1867.3,1866.6,0.57688848]
[1771823869204,0.00539438,1867.6,1867.0,0.57307044]
[1771823871400,0.26773,1868.2,1867.0,0.57307044]
[1771823871401,0.40243584,1868.1,1867.0,0.57307044]
[1771823871607,0.40243584,1867.8,1867.1,0.57307044]
[1771823872106,0.40243584,1868.0,1867.3,0.57307044]
[1771823872406,0.40918905,1868.0,1867.3,0.57307044]
[1771823873405,0.00675321,1868.0,1867.3,0.57307044]
[1771823874310,0.41320461,1868.9,1867.5,0.57307044]
[1771823874511,0.41320461,1868.7,1867.5,0.57307044]
[1771823874707,0.41320461,1868.5,1867.5,0.57307044]
[1771823875308,0.41862614,1868.5,1867.5,0.57307044]
[1771823877106,4.56551741,1869.0,1867.5,0.57307044]
[1771823877308,12.83354642,1869.8,1868.1,0.57307044]
[1771823877309,0.40783584,1869.4,1868.1,0.57307044]
[1771823878201,0.41282817,1869.4,1868.1,0.57706621]
[1771823878906,0.40783584,1869.3,1868.1,0.57706621]
[1771823879312,0.42675355,1869.4,1868.1,0.57706621]
[1771823882014,0.00499233,1869.4,1868.5,7.42547044]
[1771823882215,0.00499233,1869.4,1868.6,0.57307044]
[1771823882415,0.40212253,1869.3,1868.6,0.57307044]
[1771823883020,0.66975253,1869.3,1868.6,0.57307044]
[1771823883419,0.6606911,1869.2,1868.6,0.57307044]
[1771823883721,0.3930611,1869.1,1868.6,0.57307044]
[1771823884221,0.3930611,1869.1,1868.2,0.57307044]
[1771823884610,0.3930611,1869.0,1868.2,0.57307044]
[1771823885724,0.408185,1869.2,1868.2,0.57307044]
[1771823885920,0.408185,1869.1,1868.2,0.57307044]
[1771823886324,0.675815,1869.1,1868.2,0.57307044]
[1771823886922,0.408185,1869.0,1868.2,0.57307044]
[1771823888324,0.26763,1868.9,1868.2,0.57307044]
[1771823888625,0.6598404,1868.9,1868.2,0.57307044]
[1771823888827,0.26763,1868.9,1868.2,0.57307044]
[1771823889129,0.38802966,1869.2,1868.2,0.57307044]
[1771823889828,0.65565966,1869.1,1868.2,0.57307044]
[1771823890028,0.38802966,1869.1,1868.2,0.57307044]
[1771823890731,0.26763,1869.0,1868.2,0.57307044]
[1771823892026,0.38802966,1869.1,1868.2,0.57307044]
[1771823892330,0.65565966,1869.1,1868.2,0.57307044]
[1771823893335,0.65565966,1869.1,1868.4,0.57307044]
[1771823893633,0.37643252,1869.3,1868.4,0.57307044]
[1771823896433,0.37006132,1869.1,1868.4,0.57307044]
[1771823896832,0.37006132,1868.8,1868.4,0.57307044]
[1771823897333,0.26763,1868.7,1868.4,0.57307044]
[1771823897828,0.26763,1868.6,1868.4,0.57307044]
[1771823898029,0.3668102,1868.9,1868.4,0.57307044]
[1771823898231,0.26763,1868.7,1868.4,0.57307044]
[1771823898632,0.3668102,1868.9,1868.4,0.57307044]
[1771823898833,0.26763,1868.7,1868.4,0.57307044]
[1771823899033,0.36678198,1869.1,1868.4,0.57307044]
[1771823899229,0.63130111,1868.8,1868.4,0.57307044]
[1771823899433,0.36367111,1868.8,1868.4,0.57307044]
[1771823899728,0.26763,1868.7,1868.4,0.57307044]
[1771823899935,0.36367111,1868.9,1868.4,0.57307044]
[1771823900331,0.26763,1868.7,1868.4,0.57307044]
[1771823900730,0.36367111,1868.9,1868.4,0.57307044]
[1771823901134,0.36437612,1869.2,1868.4,0.57307044]
[1771823901435,0.63200612,1869.0,1868.4,0.57307044]
[1771823901629,0.36437612,1869.2,1868.4,0.57307044]
[1771823901832,0.36437612,1868.9,1868.4,0.57307044]
[1771823902031,0.26763,1869.0,1868.4,0.57307044]
[1771823902231,0.36437612,1869.1,1868.4,0.57307044]
[1771823902936,0.36437612,1868.8,1868.4,0.57307044]
[1771823903336,0.26763,1868.7,1868.4,0.57307044]
[1771823903835,0.26763,1868.6,1868.4,0.57307044]
[1771823904039,0.36668976,1868.9,1868.4,0.57307044]
[1771823904434,0.36668976,1869.1,1868.4,0.57307044]
[1771823905438,7.06503704,1869.3,1868.4,0.57307044]
[1771823905639,0.59803704,1869.1,1868.4,0.57307044]
[1771823906136,8.12040331,1869.0,1868.4,0.57307044]
[1771823906330,0.59803704,1868.9,1868.4,0.57307044]
[1771823908538,0.59803704,1869.0,1868.4,0.57307044]
[1771823908939,0.59803704,1869.2,1868.4,0.57307044]
[1771823909140,8.71566143,1869.1,1868.4,0.57307044]
[1771823909337,0.59803704,1869.1,1868.4,0.57307044]
[1771823911642,6.467,1869.3,1868.4,0.57307044]
[1771823911843,0.59803704,1869.1,1868.4,0.57307044]
[1771823912143,5.71618174,1869.0,1868.4,0.57307044]
[1771823912341,0.59803704,1869.3,1868.4,0.57307044]
[1771823912843,0.60302937,1869.4,1868.6,0.57471726]
[1771823914335,0.00499233,1869.4,1868.6,0.57471726]
[1771823916437,0.60302937,1869.4,1868.6,0.57471726]
[1771823917545,0.00499233,1869.4,1868.6,0.57471726]
[1771823918947,0.60302937,1869.4,1868.6,0.57471726]
[1771823928051,0.60516085,1869.4,1868.6,0.57471726]
[1771823929551,0.00499233,1869.4,1868.6,0.57471726]
[1771823929852,0.60507006,1869.4,1868.6,0.57471726]
[1771823931655,1.6048055,1869.8,1868.6,0.57471726]
[1771823931860,1.6048055,1869.8,1869.0,0.58424418]
[1771823932756,1.60922322,1869.8,1869.0,0.58424418]
[1771823932957,0.60051608,1869.7,1869.0,0.58424418]
[1771823941864,2.2097393,1869.8,1869.0,0.58424418]
[1771823943157,0.60051608,1869.7,1869.0,0.58424418]
[1771823946468,0.02540217,1869.7,1869.0,0.58424418]
[1771823947475,0.03108355,1869.7,1869.0,0.58424418]
[1771823947974,0.03108355,1869.7,1868.9,0.59689395]
[1771823951068,0.21978885,1869.7,1869.3,0.61437166]
[1771823951680,0.21978885,1869.7,1869.0,0.61437166]
[1771823955874,0.19822744,1869.5,1868.5,0.61280301]
[1771823956677,0.19957176,1869.7,1868.7,0.61261379]
[1771823957376,0.18547583,1869.5,1868.7,0.61261379]
[1771823957873,0.00568138,1869.7,1868.6,0.26766]
[1771823957874,0.19159961,1869.7,1868.9,0.69637247]
[1771823958170,0.00568138,1869.7,1869.1,0.69637247]
[1771823958367,0.19156415,1869.7,1869.1,0.69637247]
[1771823959171,0.00568138,1869.7,1869.1,0.69637247]
[1771823959479,0.16546919,1869.7,1869.1,0.69637247]
[1771823960375,0.16546919,1869.7,1868.5,0.69637247]
[1771823961578,0.16546919,1869.7,1868.7,0.69637247]
[1771823963277,0.16546919,1869.7,1869.0,0.69637247]
[1771823963473,0.00568138,1869.7,1869.0,0.69637247]
[1771823963674,0.1310417,1870.3,1869.7,0.69637247]
[1771823964275,0.12694438,1870.1,1869.7,0.69637247]
[1771823964676,0.13099942,1870.1,1869.7,0.7018573]
[1771823966878,0.13099942,1870.1,1868.8,0.69637247]
[1771823967083,0.1481604,1869.9,1868.8,0.69637247]
[1771823967985,0.1481604,1869.9,1868.8,0.70239659]
[1771823969283,0.59264371,1869.8,1868.8,0.70239659]
[1771823969483,0.14238956,1869.7,1868.8,0.70239659]
[1771823971878,0.12886223,1869.5,1868.8,0.70239659]
[1771823974190,0.12886223,1869.5,1868.8,0.00602412]
[1771823974388,0.12886223,1869.5,1868.8,0.70239659]
[1771823974889,0.10456222,1869.3,1868.8,0.70239659]
[1771823975386,0.10456222,1869.3,1868.8,0.00602412]
[1771823975790,0.10456222,1869.3,1868.8,0.70239659]
[1771823976292,0.10456222,1869.3,1868.5,0.69637247]
[1771823976686,0.09329456,1869.1,1868.5,0.69637247]
[1771823976892,0.09329456,1869.1,1867.9,0.69637247]
[1771823977290,0.09329456,1869.1,1867.9,0.70294615]
[1771823977587,0.07891327,1869.0,1867.9,0.70294615]
[1771823977787,0.07891327,1868.8,1867.9,0.70294615]
[1771823978794,0.59104933,1868.7,1867.9,0.70294615]
[1771823978994,0.07098488,1868.6,1867.9,0.70294615]
[1771823979594,0.07098488,1868.6,1867.9,0.00657368]
[1771823979895,0.0710018,1868.4,1867.5,0.69637247]
[1771823980794,0.0710018,1868.4,1867.5,0.70313829]
[1771823981295,0.04777563,1868.2,1867.5,0.70313829]
[1771823981692,0.04777563,1868.1,1867.3,0.69637247]
[1771823982692,0.04777563,1868.1,1866.8,0.69637247]
[1771823983000,0.04777563,1868.1,1867.1,0.69637247]
[1771823983802,0.04777563,1868.1,1867.1,0.70104099]
[1771823984008,0.02889154,1867.9,1867.1,0.00466852]
[1771823985304,0.02889154,1867.9,1867.1,0.70104099]
[1771823986208,0.02889154,1867.9,1867.1,0.00466852]
[1771823988008,0.00331948,1867.8,1867.1,0.00466852]
[1771823988210,0.00331948,1867.8,1867.0,0.69637247]
[1771823988808,0.00331948,1867.8,1866.3,0.63789735]
[1771823989306,0.00331948,1867.8,1866.3,0.6425289]
[1771823990008,0.00362734,1867.7,1866.3,0.6425289]
[1771823990505,6.59134734,1867.7,1866.3,0.6425289]
[1771823990713,0.00362734,1867.5,1866.3,0.6425289]
[1771823994913,0.26783,1867.4,1866.3,0.6425289]
[1771823995712,6.85651,1867.4,1866.3,0.6425289]
[1771823996416,0.26783,1867.4,1866.3,0.6425289]
[1771823996619,6.467,1867.3,1866.3,0.6425289]
[1771823996918,6.4713186,1867.3,1866.3,0.6425289]
[1771823997319,6.4713186,1867.3,1866.4,0.62083218]
[1771823998316,0.0043186,1867.3,1866.4,0.62083218]
[1771823998619,0.26776,1867.9,1866.3,2.47563775]
[1771823998620,0.26776,1867.9,1866.7,0.62062807]
[1771823999214,0.03060814,1868.0,1867.0,0.60146392]
[1771823999515,0.03527444,1868.0,1867.0,0.60146392]
[1771824000817,0.0046663,1868.0,1867.0,0.60146392]
[1771824001113,0.03669658,1868.0,1867.0,0.60146392]
[1771824002114,0.0046663,1868.0,1867.0,0.60146392]
[1771824002314,0.03289437,1868.0,1867.0,0.60146392]
[1771824002719,0.02822807,1867.8,1867.0,0.60146392]
[1771824003318,0.26778,1867.7,1867.0,0.60146392]
[1771824003620,0.03022358,1867.6,1866.4,0.5951118]
[1771824007422,7.87451501,1867.5,1866.4,0.5951118]
[1771824007623,0.03022358,1867.6,1866.4,0.5951118]
[1771824007820,7.87451574,1867.5,1866.4,0.5951118]
[1771824008120,0.03022358,1867.6,1866.4,0.5951118]
[1771824008315,8.46476874,1867.5,1866.4,0.5951118]
[1771824008520,7.87451574,1867.4,1866.4,0.5951118]
[1771824008722,4.48509439,1867.6,1866.4,0.5951118]
[1771824008922,8.47403478,1867.5,1866.4,0.5951118]
[1771824009123,7.88378733,1867.4,1866.4,0.5951118]
[1771824009322,7.54249011,1867.3,1866.4,0.5951118]
[1771824009518,4.4595593,1867.6,1866.4,0.5951118]
[1771824009718,0.59080463,1867.5,1866.4,0.5951118]
[1771824009922,0.59080463,1867.4,1866.4,0.5951118]
[1771824010123,4.48486302,1867.6,1866.4,0.5951118]
[1771824010422,5.07597613,1867.5,1866.4,0.5951118]
[1771824010617,0.59111311,1867.4,1866.4,0.5951118]
[1771824010815,4.48486302,1867.5,1866.4,0.5951118]
[1771824011018,0.5911113,1867.4,1866.4,0.5951118]
[1771824011214,0.03242595,1867.4,1866.4,0.5951118]
[1771824011418,0.03242595,1867.2,1866.4,0.5951118]
[1771824011718,0.03242595,1867.4,1866.4,0.5951118]
[1771824011923,0.59136566,1867.3,1866.4,0.5951118]
[1771824012123,4.49198525,1867.5,1866.4,0.5951118]
[1771824012421,0.62399216,1867.4,1866.4,0.5951118]
[1771824012618,0.59156621,1867.3,1866.4,0.5951118]
[1771824012820,0.03242595,1867.4,1866.4,0.5951118]
[1771824013123,0.59156904,1867.3,1866.4,0.5951118]
[1771824013323,4.4595593,1867.5,1866.4,0.5951118]
[1771824013324,4.46666858,1867.5,1866.4,0.5951118]
[1771824013526,0.59165022,1867.4,1866.4,0.5951118]
[1771824013722,0.59165022,1867.3,1866.4,0.5951118]
[1771824013915,0.00710928,1867.4,1866.4,0.5951118]
[1771824014122,0.00710928,1867.2,1866.4,0.5951118]
[1771824016826,0.01446271,1867.0,1866.4,0.5951118]
[1771824017525,0.01962163,1867.3,1866.4,0.5951118]
[1771824017726,0.01962163,1867.1,1866.4,0.5951118]
[1771824018427,10.9265593,1867.4,1866.4,0.5951118]
[1771824018428,0.01962023,1866.9,1866.4,0.5951118]
[1771824018722,0.01962023,1866.9,1866.3,0.60699967]
[1771824018918,0.01962023,1866.7,1866.3,0.60699967]
[1771824019728,0.01962023,1866.7,1866.3,0.00463155]
[1771824020428,0.01962023,1866.7,1866.2,0.60236812]
[1771824021228,0.0079603,1866.5,1866.1,0.60625329]
[1771824021532,0.01249043,1866.5,1866.1,0.61143025]
[1771824022129,0.0079603,1866.4,1866.0,0.60236812]
[1771824022727,0.0079603,1866.4,1865.2,0.60236812]
[1771824022927,0.5877026,1866.2,1865.2,0.60236812]
[1771824023127,0.5877026,1866.2,1865.2,0.60744461]
[1771824023431,0.5877026,1866.0,1865.2,0.60744461]
[1771824026730,0.5877026,1866.4,1865.2,0.60744461]
[1771824027037,8.45458009,1866.3,1865.2,0.60744461]
[1771824027232,0.5877026,1866.3,1865.2,0.60744461]
[1771824029335,0.00453013,1866.5,1865.4,0.60236812]
[1771824029536,0.59223273,1866.5,1865.4,0.60236812]
[1771824031643,0.59223273,1866.5,1865.6,0.60236812]
[1771824034048,0.00453013,1866.5,1865.6,0.60236812]
[1771824034345,0.5877026,1866.8,1865.8,0.60236812]
[1771824035347,0.59224871,1866.8,1865.8,0.60236812]
[1771824041258,0.5877026,1866.6,1865.8,0.60236812]
[1771824046158,0.5913037,1866.5,1865.8,0.60236812]
[1771824046359,0.5877026,1866.4,1865.8,0.60236812]
[1771824047362,0.56258475,1866.7,1866.4,4.30556947]
[1771824047560,0.56258475,1866.5,1866.0,0.6003224]
[1771824047759,0.56258475,1866.5,1866.1,4.49851789]
[1771824048261,0.56258475,1866.5,1866.1,0.6003224]
[1771824048563,0.56258475,1866.5,1865.2,0.27320649]
[1771824048763,0.56258475,1866.5,1865.3,0.6003224]
[1771824049867,0.56258475,1866.5,1865.5,0.6003224]
[1771824050068,0.56258475,1866.7,1865.7,0.6003224]
[1771824055171,0.59209999,1866.6,1865.7,0.6003224]
[1771824055472,0.56258475,1866.5,1865.7,0.6003224]
[1771824058474,0.56258475,1866.3,1865.7,0.6003224]
[1771824059975,0.56258475,1866.1,1865.7,0.6003224]
[1771824061073,0.56258475,1866.3,1865.7,0.6003224]
[1771824062174,0.56258475,1866.5,1865.7,0.6003224]
[1771824062376,8.51659794,1866.4,1866.2,0.6003224]
[1771824062577,0.56258475,1866.5,1866.2,0.6003224]
[1771824063075,0.56258475,1866.5,1865.5,0.6003224]
[1771824063576,0.56258475,1866.7,1865.5,0.6003224]
[1771824063775,9.07931341,1866.6,1865.5,0.6003224]
[1771824063977,8.51672866,1866.5,1865.5,0.6003224]
[1771824064178,0.56258475,1866.6,1865.5,0.6003224]
[1771824064379,9.07943938,1866.5,1865.5,0.6003224]
[1771824064577,0.56258475,1866.5,1865.5,0.6003224]
[1771824067684,0.56258475,1866.3,1865.5,0.6003224]
[1771824069184,0.56258475,1866.1,1865.5,0.6003224]
[1771824074991,0.56258475,1866.4,1865.5,0.6003224]
[1771824077787,0.56258475,1866.4,1865.4,2.48070565]
[1771824077788,4.4595593,1866.7,1866.2,0.6652336]
[1771824077996,0.00454611,1866.8,1866.2,0.6652336]
[1771824081698,0.63162551,1867.1,1866.4,0.6652336]
[1771824081897,0.63162551,1867.2,1866.4,0.6652336]
[1771824082301,0.63162551,1867.3,1866.4,0.6652336]
[1771824082600,0.63602138,1867.3,1866.4,0.6652336]
[1771824085602,0.63602138,1867.3,1866.2,0.6652336]
[1771824086603,0.63162551,1867.1,1865.7,0.6652336]
[1771824091312,0.63162551,1866.9,1865.7,0.6652336]
[1771824099121,0.63162551,1866.9,1865.9,0.6652336]
[1771824100419,0.63162551,1866.7,1865.9,0.6652336]
[1771824102721,0.63162551,1866.6,1865.8,0.6652336]
[1771824109225,0.59275641,1866.5,1865.8,0.6652336]
[1771824110028,0.59275641,1866.5,1866.0,0.56205948]
[1771824111225,7.05975641,1866.7,1866.0,0.56205948]
[1771824111429,6.467,1866.7,1866.0,0.56205948]
[1771824111627,0.59275641,1866.6,1866.0,0.56205948]
[1771824112319,0.59275641,1866.8,1866.4,0.56205948]
[1771824114923,0.2679,1866.9,1866.5,3.89819549]
[1771824115126,0.59275641,1867.1,1866.6,0.56205948]
[1771824115326,1.18489836,1867.0,1866.6,0.56884719]
[1771824115525,0.59275641,1867.0,1866.6,0.56884719]
[1771824119528,0.59275641,1866.7,1866.1,0.56205948]
[1771824120524,0.59275641,1866.7,1866.1,0.56730182]
[1771824120725,2.10583349,1867.0,1866.3,0.56205948]
[1771824121020,0.59275641,1866.8,1866.3,0.56205948]
[1771824122426,0.59275641,1866.9,1866.5,0.56205948]
[1771824122627,0.59275641,1867.1,1866.5,0.56205948]
[1771824122827,0.59275641,1866.9,1866.5,0.56205948]
[1771824126229,0.59275641,1867.1,1866.5,0.56205948]
[1771824126430,0.59715228,1867.3,1866.7,0.56205948]
[1771824126629,9.12057838,1867.2,1866.7,0.56205948]
[1771824126828,0.59226371,1867.1,1866.7,0.56205948]
[1771824127029,0.59715228,1867.3,1866.7,0.56205948]
[1771824127331,8.52778526,1867.2,1866.7,0.56205948]
[1771824127530,0.59715228,1867.3,1866.7,0.56205948]
[1771824127729,9.118566,1867.2,1866.7,0.56205948]
[1771824127929,0.59275641,1867.2,1866.7,0.56205948]
[1771824129330,0.00439587,1867.3,1866.1,0.00524234]
[1771824129331,0.59715228,1867.3,1867.1,0.56205948]
[1771824129533,0.59275641,1867.6,1867.1,0.56205948]
[1771824129833,0.59275641,1867.4,1867.1,0.56205948]
[1771824130032,0.59275641,1867.5,1867.1,0.56205948]
[1771824130430,0.5967325,1867.5,1867.1,0.56205948]
[1771824131632,0.5967325,1867.5,1866.6,0.56205948]
[1771824134240,0.5967325,1867.5,1866.7,0.56205948]
[1771824138531,2.43270491,1867.5,1866.7,0.56205948]
[1771824138841,0.56934079,1867.4,1866.3,0.55302108]
[1771824139842,0.56934079,1867.3,1866.3,0.55302108]
[1771824143847,0.56934079,1867.3,1866.9,0.55302108]
[1771824144251,0.56934079,1867.3,1866.2,0.55302108]
[1771824148750,0.56934079,1867.1,1866.2,0.55302108]
[1771824150756,0.56934079,1867.3,1866.2,0.55302108]
[1771824150952,9.10746936,1867.2,1866.2,0.55302108]
[1771824151255,1.16170621,1867.1,1866.2,0.55302108]
[1771824151455,0.56934079,1867.1,1866.2,0.55302108]
[1771824157765,0.56934079,1866.9,1866.2,0.55302108]
[1771824158256,0.56934079,1867.1,1866.7,0.55302108]
[1771824158455,0.56934079,1866.9,1866.2,0.55302108]
[1771824164262,5.02890009,1867.3,1866.4,0.55302108]
[1771824164561,0.56934079,1867.1,1866.4,0.55302108]
[1771824171066,0.56974208,1867.3,1866.4,0.55302108]
[1771824171366,0.56974208,1867.3,1866.7,0.57236711]
[1771824172366,0.00397609,1867.5,1866.7,0.57236711]
[1771824172770,0.57371817,1867.5,1866.7,0.57236711]
[1771824172971,0.00397609,1867.5,1866.7,0.57236711]
[1771824173271,0.57371817,1867.5,1866.7,0.57236711]
[1771824173472,0.57371817,1867.5,1867.2,4.4705626]
[1771824173677,0.56974208,1867.8,1867.3,0.57236711]
[1771824173972,9.11597481,1867.7,1867.3,0.57236711]
[1771824174164,6.71656547,1868.1,1867.3,0.57236711]
[1771824174165,0.56974208,1867.8,1867.3,0.57236711]
[1771824174379,4.4595593,1868.1,1867.3,0.57236711]
[1771824174380,0.56974208,1868.0,1867.3,0.57236711]
[1771824174681,1.16244537,1867.9,1867.3,0.57236711]
[1771824174882,0.56974208,1867.9,1867.3,0.57236711]
[1771824177582,0.56974208,1867.9,1866.8,0.57236711]
[1771824178278,0.56974208,1867.9,1867.0,0.57236711]
[1771824181576,0.56974208,1867.9,1866.5,0.57236711]
[1771824182181,0.56974208,1867.9,1866.7,0.57236711]
[1771824187089,0.56974208,1867.9,1866.9,0.57236711]
[1771824189088,0.56974208,1867.9,1867.5,3.89819549]